[Event "British Rapidplay Championship 2023"]
[Site "Mercure Bradford, Bankfield Hotel"]
[Date "2023.04.16"]
[Round "7.21"]
[White "Cheng, Louis"]
[Black "Walton, Alan J"]
[Result "1/2-1/2"]
[TimeControl "15 minutes plus 10 seconds per move"]
[WhiteElo "1617"]
[BlackElo "2105"]

1. e4 {[%clk 00:15:17]} {[%emt 00:00:02]} e6 {[%clk 00:15:18]} {[%emt
00:00:04]} 2. d4 {[%clk 00:15:25]} {[%emt 00:00:02]} d5 {[%clk 00:15:25]}
{[%emt 00:00:03]} 3. Nd2 {[%clk 00:15:32]} {[%emt 00:00:02]} Be7 {[%clk
00:15:31]} {[%emt 00:00:04]} 4. Ngf3 {[%clk 00:15:39]} {[%emt 00:00:03]} c5
{[%clk 00:15:32]} {[%emt 00:00:11]} 5. exd5 {[%clk 00:15:29]} {[%emt 00:00:19]}
exd5 {[%clk 00:15:39]} {[%emt 00:00:02]} 6. c3 {[%clk 00:15:36]} {[%emt
00:00:03]} Nc6 {[%clk 00:15:37]} {[%emt 00:00:13]} 7. Bb5 {[%clk 00:15:38]}
{[%emt 00:00:08]} Nf6 {[%clk 00:15:03]} {[%emt 00:00:44]} 8. O-O {[%clk
00:15:32]} {[%emt 00:00:16]} O-O {[%clk 00:15:10]} {[%emt 00:00:03]} 9. dxc5
{[%clk 00:15:14]} {[%emt 00:00:28]} Bxc5 {[%clk 00:15:12]} {[%emt 00:00:07]} 10.
Nb3 {[%clk 00:15:19]} {[%emt 00:00:05]} Bd6 {[%clk 00:15:09]} {[%emt 00:00:13]}
11. Bg5 {[%clk 00:15:09]} {[%emt 00:00:19]} a6 {[%clk 00:13:45]} {[%emt
00:01:36]} 12. Bd3 {[%clk 00:14:46]} {[%emt 00:00:32]} h6 {[%clk 00:13:50]}
{[%emt 00:00:06]} 13. Bh4 {[%clk 00:14:45]} {[%emt 00:00:10]} Bg4 {[%clk
00:13:40]} {[%emt 00:00:21]} 14. h3 {[%clk 00:14:00]} {[%emt 00:00:54]} Be6
{[%clk 00:11:51]} {[%emt 00:02:00]} 15. Bc2 {[%clk 00:12:53]} {[%emt 00:01:16]}
Be7 {[%clk 00:11:50]} {[%emt 00:00:12]} 16. Re1 {[%clk 00:11:11]} {[%emt
00:01:51]} Qd7 {[%clk 00:09:10]} {[%emt 00:02:50]} 17. Qd3 {[%clk 00:10:34]}
{[%emt 00:00:47]} g6 {[%clk 00:08:22]} {[%emt 00:00:59]} 18. Nfd4 {[%clk
00:10:23]} {[%emt 00:00:20]} Nd8 {[%clk 00:07:45]} {[%emt 00:00:47]} 19. Bxf6
{[%clk 00:09:42]} {[%emt 00:00:51]} Bxf6 {[%clk 00:07:51]} {[%emt 00:00:05]} 20.
Nc5 {[%clk 00:09:48]} {[%emt 00:00:03]} Qe8 {[%clk 00:07:27]} {[%emt 00:00:35]}
21. Ncxe6 {[%clk 00:09:28]} {[%emt 00:00:29]} Nxe6 {[%clk 00:06:39]} {[%emt
00:00:58]} 22. Nxe6 {[%clk 00:09:35]} {[%emt 00:00:03]} fxe6 {[%clk 00:06:38]}
{[%emt 00:00:11]} 23. Rxe6 {[%clk 00:09:33]} {[%emt 00:00:12]} Qf7 {[%clk
00:06:33]} {[%emt 00:00:16]} 24. Qxd5 {[%clk 00:08:57]} {[%emt 00:00:45]} Rad8
{[%clk 00:06:35]} {[%emt 00:00:08]} 25. Qb3 {[%clk 00:08:56]} {[%emt 00:00:11]}
Kh7 {[%clk 00:06:25]} {[%emt 00:00:20]} 26. Rb6 {[%clk 00:08:17]} {[%emt
00:00:45]} Qxb3 {[%clk 00:05:42]} {[%emt 00:00:58]} 27. Bxb3 {[%clk 00:08:17]}
{[%emt 00:00:09]} Rd7 {[%clk 00:05:46]} {[%emt 00:00:07]} 28. Rd1 {[%clk
00:07:47]} {[%emt 00:00:39]} Rxd1+ {[%clk 00:05:48]} {[%emt 00:00:09]} 29. Bxd1
{[%clk 00:07:54]} {[%emt 00:00:02]} Rd8 {[%clk 00:04:31]} {[%emt 00:01:27]} 30.
Bf3 {[%clk 00:08:00]} {[%emt 00:00:03]} Be5 {[%clk 00:04:23]} {[%emt 00:00:20]}
31. Rxb7+ {[%clk 00:08:06]} {[%emt 00:00:04]} Kh8 {[%clk 00:04:30]} {[%emt
00:00:02]} 32. g3 {[%clk 00:08:03]} {[%emt 00:00:13]} Rd2 {[%clk 00:04:35]}
{[%emt 00:00:05]} 33. Be4 {[%clk 00:07:34]} {[%emt 00:00:35]} g5 {[%clk
00:04:43]} {[%emt 00:00:06]} 34. Kf1 {[%clk 00:07:01]} {[%emt 00:00:42]} a5
{[%clk 00:04:12]} {[%emt 00:00:42]} 35. Ke1 {[%clk 00:07:05]} {[%emt 00:00:06]}
Rd8 {[%clk 00:03:12]} {[%emt 00:01:11]} 36. Re7 {[%clk 00:06:52]} {[%emt
00:00:21]} Bf6 {[%clk 00:03:13]} {[%emt 00:00:10]} 37. Re6 {[%clk 00:06:58]}
{[%emt 00:00:04]} Kg7 {[%clk 00:03:21]} {[%emt 00:00:03]} 38. Ra6 {[%clk
00:06:51]} {[%emt 00:00:15]} Re8 {[%clk 00:03:15]} {[%emt 00:00:17]} 39. f3
{[%clk 00:06:59]} {[%emt 00:00:02]} h5 {[%clk 00:03:14]} {[%emt 00:00:11]} 40.
Rxa5 {[%clk 00:06:31]} {[%emt 00:00:39]} g4 {[%clk 00:03:22]} {[%emt 00:00:01]}
41. hxg4 {[%clk 00:06:36]} {[%emt 00:00:05]} hxg4 {[%clk 00:03:31]} {[%emt
00:00:01]} 42. Kf2 {[%clk 00:06:43]} {[%emt 00:00:03]} gxf3 {[%clk 00:03:32]}
{[%emt 00:00:09]} 43. Bxf3 {[%clk 00:06:51]} {[%emt 00:00:02]} Rb8 {[%clk
00:03:39]} {[%emt 00:00:04]} 44. Ra7+ {[%clk 00:05:54]} {[%emt 00:01:06]} Kg6
{[%clk 00:03:46]} {[%emt 00:00:04]} 45. Rb7 {[%clk 00:06:02]} {[%emt 00:00:02]}
Rd8 {[%clk 00:03:42]} {[%emt 00:00:14]} 46. Be4+ {[%clk 00:05:19]} {[%emt
00:00:53]} Kg5 {[%clk 00:03:49]} {[%emt 00:00:03]} 47. Kf3 {[%clk 00:05:27]}
{[%emt 00:00:02]} Be5 {[%clk 00:03:48]} {[%emt 00:00:11]} 48. Rf7 {[%clk
00:05:28]} {[%emt 00:00:08]} Bf6 {[%clk 00:03:49]} {[%emt 00:00:08]} 49. Rh7
{[%clk 00:05:05]} {[%emt 00:00:33]} Rb8 {[%clk 00:03:53]} {[%emt 00:00:07]} 50.
g4 {[%clk 00:04:55]} {[%emt 00:00:21]} Be5 {[%clk 00:04:01]} {[%emt 00:00:02]}
51. Rh5+ {[%clk 00:04:52]} {[%emt 00:00:12]} Kf6 {[%clk 00:04:09]} {[%emt
00:00:02]} 52. Rh6+ {[%clk 00:04:57]} {[%emt 00:00:05]} Ke7 {[%clk 00:04:03]}
{[%emt 00:00:17]} 53. Bf5 {[%clk 00:04:55]} {[%emt 00:00:10]} Bf6 {[%clk
00:03:53]} {[%emt 00:00:21]} 54. Rh2 {[%clk 00:04:57]} {[%emt 00:00:08]} Ra8
{[%clk 00:03:48]} {[%emt 00:00:16]} 55. Re2+ {[%clk 00:04:56]} {[%emt
00:00:10]} Kf7 {[%clk 00:03:55]} {[%emt 00:00:04]} 56. Be4 {[%clk 00:04:53]}
{[%emt 00:00:12]} Rb8 {[%clk 00:03:56]} {[%emt 00:00:10]} 57. a4 {[%clk
00:04:53]} {[%emt 00:00:10]} Bd8 {[%clk 00:04:00]} {[%emt 00:00:05]} 58. Bd5+
{[%clk 00:04:53]} {[%emt 00:00:10]} Kf6 {[%clk 00:03:57]} {[%emt 00:00:14]} 59.
b4 {[%clk 00:04:48]} {[%emt 00:00:15]} Bc7 {[%clk 00:03:56]} {[%emt 00:00:11]}
60. a5 {[%clk 00:04:50]} {[%emt 00:00:07]} Rh8 {[%clk 00:03:52]} {[%emt
00:00:14]} 61. Rf2 {[%clk 00:04:13]} {[%emt 00:00:48]} Ke5 {[%clk 00:03:55]}
{[%emt 00:00:07]} 62. Ba2 {[%clk 00:03:18]} {[%emt 00:01:05]} Rh3+ {[%clk
00:03:57]} {[%emt 00:00:08]} 63. Kg2 {[%clk 00:03:01]} {[%emt 00:00:26]} Rxc3
{[%clk 00:04:05]} {[%emt 00:00:03]} 64. Rf5+ {[%clk 00:02:53]} {[%emt
00:00:17]} Kd4 {[%clk 00:04:06]} {[%emt 00:00:10]} 65. Rc5 {[%clk 00:02:36]}
{[%emt 00:00:23]} Rxc5 {[%clk 00:04:11]} {[%emt 00:00:09]} 66. bxc5 {[%clk
00:02:44]} {[%emt 00:00:01]} Bxa5 {[%clk 00:03:54]} {[%emt 00:00:28]} 67. g5
{[%clk 00:02:26]} {[%emt 00:00:27]} Kxc5 {[%clk 00:03:58]} {[%emt 00:00:06]} 68.
g6 {[%clk 00:02:34]} {[%emt 00:00:02]} Bc3 {[%clk 00:04:07]} {[%emt 00:00:01]}
69. Kf3 {[%clk 00:02:41]} {[%emt 00:00:04]} Kd6 {[%clk 00:04:14]} {[%emt
00:00:03]} 70. Kg4 {[%clk 00:02:49]} {[%emt 00:00:02]} Ke7 {[%clk 00:04:19]}
{[%emt 00:00:04]} 71. Kh5 {[%clk 00:02:56]} {[%emt 00:00:03]} Bg7 {[%clk
00:04:27]} {[%emt 00:00:02]} 72. Kg5 {[%clk 00:03:04]} {[%emt 00:00:02]} Kf8
{[%clk 00:04:29]} {[%emt 00:00:08]} 73. Kf5 {[%clk 00:03:09]} {[%emt 00:00:05]}
Bc3 {[%clk 00:04:33]} {[%emt 00:00:06]} 74. Bf7 {[%clk 00:03:17]} {[%emt
00:00:02]} Kg7 {[%clk 00:04:41]} {[%emt 00:00:02]} 75. Kg5 {[%clk 00:03:26]}
{[%emt 00:00:01]} Bd2+ {[%clk 00:04:48]} {[%emt 00:00:02]} 1/2-1/2

[Event "British Rapidplay Championship 2023"]
[Site "Mercure Bradford, Bankfield Hotel"]
[Date "2023.04.16"]
[Round "7.22"]
[White "Brencher, Paul"]
[Black "Patrick, Chaski"]
[Result "1/2-1/2"]
[TimeControl "15 minutes plus 10 seconds per move"]
[WhiteElo "1929"]
[BlackElo "2032"]

1. d4 {[%clk 00:15:18]} {[%emt 00:00:01]} d5 {[%clk 00:15:18]} {[%emt
00:00:02]} 2. Nc3 {[%clk 00:15:26]} {[%emt 00:00:02]} Nf6 {[%clk 00:15:26]}
{[%emt 00:00:02]} 3. Bf4 {[%clk 00:15:35]} {[%emt 00:00:01]} c6 {[%clk
00:15:14]} {[%emt 00:00:23]} 4. Qd2 {[%clk 00:15:43]} {[%emt 00:00:01]} Nbd7
{[%clk 00:15:14]} {[%emt 00:00:10]} 5. f3 {[%clk 00:15:45]} {[%emt 00:00:08]}
e6 {[%clk 00:15:08]} {[%emt 00:00:17]} 6. e4 {[%clk 00:15:38]} {[%emt
00:00:17]} dxe4 {[%clk 00:15:16]} {[%emt 00:00:02]} 7. Nxe4 {[%clk 00:15:02]}
{[%emt 00:00:46]} Nxe4 {[%clk 00:14:26]} {[%emt 00:01:00]} 8. fxe4 {[%clk
00:15:10]} {[%emt 00:00:02]} Qb6 {[%clk 00:14:28]} {[%emt 00:00:08]} 9. O-O-O
{[%clk 00:14:36]} {[%emt 00:00:44]} Nf6 {[%clk 00:14:34]} {[%emt 00:00:04]} 10.
Qd3 {[%clk 00:12:25]} {[%emt 00:02:22]} Be7 {[%clk 00:14:20]} {[%emt 00:00:24]}
11. Nf3 {[%clk 00:12:25]} {[%emt 00:00:09]} O-O {[%clk 00:13:44]} {[%emt
00:00:46]} 12. h3 {[%clk 00:10:33]} {[%emt 00:02:01]} Qa5 {[%clk 00:13:19]}
{[%emt 00:00:35]} 13. Kb1 {[%clk 00:10:14]} {[%emt 00:00:29]} c5 {[%clk
00:13:13]} {[%emt 00:00:16]} 14. d5 {[%clk 00:09:29]} {[%emt 00:00:55]} exd5
{[%clk 00:13:20]} {[%emt 00:00:03]} 15. exd5 {[%clk 00:09:34]} {[%emt
00:00:05]} c4 {[%clk 00:12:48]} {[%emt 00:00:42]} 16. Qxc4 {[%clk 00:09:06]}
{[%emt 00:00:38]} Bf5 {[%clk 00:12:57]} {[%emt 00:00:01]} 17. Qb5 {[%clk
00:06:10]} {[%emt 00:03:06]} Qxb5 {[%clk 00:12:37]} {[%emt 00:00:30]} 18. Bxb5
{[%clk 00:06:19]} Ne4 {[%clk 00:12:45]} {[%emt 00:00:01]} 19. Rhf1 {[%clk
00:06:07]} {[%emt 00:00:23]} Bd6 {[%clk 00:11:47]} {[%emt 00:01:08]} 20. Bxd6
{[%clk 00:05:31]} {[%emt 00:00:46]} Nxd6 {[%clk 00:11:55]} {[%emt 00:00:01]} 21.
Bd3 {[%clk 00:05:40]} {[%emt 00:00:02]} Bxd3 {[%clk 00:11:54]} {[%emt
00:00:11]} 22. Rxd3 {[%clk 00:05:49]} Rfe8 {[%clk 00:12:02]} {[%emt 00:00:02]}
23. Rd2 {[%clk 00:05:59]} Nc4 {[%clk 00:12:08]} {[%emt 00:00:05]} 24. Rd4
{[%clk 00:04:00]} {[%emt 00:02:09]} Rac8 {[%clk 00:12:11]} {[%emt 00:00:07]} 25.
d6 {[%clk 00:02:56]} {[%emt 00:01:13]} Red8 {[%clk 00:12:19]} {[%emt 00:00:02]}
26. Rfd1 {[%clk 00:01:25]} {[%emt 00:01:42]} f6 {[%clk 00:11:14]} {[%emt
00:01:15]} 27. b3 {[%clk 00:01:27]} {[%emt 00:00:07]} Na3+ {[%clk 00:10:57]}
{[%emt 00:00:27]} 28. Kb2 {[%clk 00:01:33]} {[%emt 00:00:04]} Nxc2 {[%clk
00:11:04]} {[%emt 00:00:03]} 29. R4d2 {[%clk 00:01:07]} {[%emt 00:00:36]} Ne3
{[%clk 00:11:04]} {[%emt 00:00:10]} 30. Re1 {[%clk 00:01:06]} {[%emt 00:00:12]}
Nf5 {[%clk 00:10:36]} {[%emt 00:00:37]} 31. d7 {[%clk 00:01:09]} {[%emt
00:00:07]} Rb8 {[%clk 00:10:38]} {[%emt 00:00:08]} 32. g4 {[%clk 00:01:12]}
{[%emt 00:00:07]} Nh6 {[%clk 00:10:41]} {[%emt 00:00:07]} 33. g5 {[%clk
00:00:59]} {[%emt 00:00:23]} Nf7 {[%clk 00:09:26]} {[%emt 00:01:24]} 34. gxf6
{[%clk 00:01:03]} {[%emt 00:00:06]} gxf6 {[%clk 00:09:28]} {[%emt 00:00:08]} 35.
Rd5 {[%clk 00:00:54]} {[%emt 00:00:20]} Kh8 {[%clk 00:05:20]} {[%emt 00:04:17]}
36. Re7 {[%clk 00:00:54]} {[%emt 00:00:10]} Kg7 {[%clk 00:04:30]} {[%emt
00:01:00]} 37. Nd4 {[%clk 00:01:00]} {[%emt 00:00:04]} Kf8 {[%clk 00:04:38]}
{[%emt 00:00:01]} 38. Re6 {[%clk 00:00:33]} {[%emt 00:00:38]} Kg7 {[%clk
00:03:46]} {[%emt 00:01:02]} 39. Re7 {[%clk 00:00:41]} {[%emt 00:00:02]} Kf8
{[%clk 00:03:54]} {[%emt 00:00:01]} 40. Re6 {[%clk 00:00:51]} Kg7 {[%clk
00:04:03]} {[%emt 00:00:01]} 41. Nf5+ {[%clk 00:00:34]} {[%emt 00:00:27]} Kg6
{[%clk 00:03:52]} {[%emt 00:00:20]} 42. Ne7+ {[%clk 00:00:40]} {[%emt
00:00:04]} Kg7 {[%clk 00:04:01]} 43. Nf5+ {[%clk 00:00:49]} {[%emt 00:00:02]}
Kg6 {[%clk 00:04:10]} 44. Ne7+ {[%clk 00:00:59]} Kg7 {[%clk 00:04:19]} 45. Nf5+
{[%clk 00:00:41]} {[%emt 00:00:27]} 1/2-1/2

[Event "British Rapidplay Championship 2023"]
[Site "Mercure Bradford, Bankfield Hotel"]
[Date "2023.04.16"]
[Round "7.23"]
[White "Gopakumar, Siddharth"]
[Black "Watson, Phil R"]
[Result "0-1"]
[TimeControl "15 minutes plus 10 seconds per move"]
[WhiteElo "1735"]
[BlackElo "2144"]

1. e4 {[%clk 00:15:18]} c6 {[%clk 00:15:19]} {[%emt 00:00:02]} 2. Nc3 {[%clk
00:15:25]} {[%emt 00:00:03]} d5 {[%clk 00:15:28]} {[%emt 00:00:01]} 3. Nf3
{[%clk 00:15:33]} {[%emt 00:00:02]} Bg4 {[%clk 00:15:37]} {[%emt 00:00:02]} 4.
h3 {[%clk 00:15:41]} {[%emt 00:00:01]} Bxf3 {[%clk 00:15:45]} {[%emt 00:00:02]}
5. Qxf3 {[%clk 00:15:50]} {[%emt 00:00:02]} e6 {[%clk 00:15:52]} {[%emt
00:00:03]} 6. d3 {[%clk 00:15:57]} {[%emt 00:00:03]} Nd7 {[%clk 00:15:59]}
{[%emt 00:00:03]} 7. Bd2 {[%clk 00:16:05]} {[%emt 00:00:02]} Ngf6 {[%clk
00:16:00]} {[%emt 00:00:09]} 8. g4 {[%clk 00:16:09]} {[%emt 00:00:06]} Ne5
{[%clk 00:14:17]} {[%emt 00:01:53]} 9. Qg3 {[%clk 00:15:40]} {[%emt 00:00:39]}
Qb8 {[%clk 00:14:02]} {[%emt 00:00:26]} 10. f4 {[%clk 00:11:38]} {[%emt
00:04:12]} Ng6 {[%clk 00:12:15]} {[%emt 00:01:57]} 11. e5 {[%clk 00:11:29]}
{[%emt 00:00:18]} Nd7 {[%clk 00:12:19]} {[%emt 00:00:06]} 12. Be2 {[%clk
00:10:38]} {[%emt 00:01:01]} Bc5 {[%clk 00:11:30]} {[%emt 00:00:59]} 13. h4
{[%clk 00:10:33]} {[%emt 00:00:14]} Ne7 {[%clk 00:09:33]} {[%emt 00:02:07]} 14.
Na4 {[%clk 00:10:07]} {[%emt 00:00:36]} Bd4 {[%clk 00:09:26]} {[%emt 00:00:18]}
15. c3 {[%clk 00:10:02]} {[%emt 00:00:16]} Bxe5 {[%clk 00:09:24]} {[%emt
00:00:12]} 16. fxe5 {[%clk 00:10:01]} {[%emt 00:00:10]} b5 {[%clk 00:09:33]}
{[%emt 00:00:01]} 17. d4 {[%clk 00:07:27]} {[%emt 00:02:45]} bxa4 {[%clk
00:09:37]} {[%emt 00:00:06]} 18. Rb1 {[%clk 00:07:29]} {[%emt 00:00:08]} f6
{[%clk 00:08:51]} {[%emt 00:00:56]} 19. Bf4 {[%clk 00:06:59]} {[%emt 00:00:40]}
Ng6 {[%clk 00:08:53]} {[%emt 00:00:08]} 20. h5 {[%clk 00:05:18]} {[%emt
00:01:51]} Nxf4 {[%clk 00:09:01]} {[%emt 00:00:02]} 21. Qxf4 {[%clk 00:05:26]}
{[%emt 00:00:02]} fxe5 {[%clk 00:08:53]} {[%emt 00:00:17]} 22. Qg5 {[%clk
00:05:23]} {[%emt 00:00:14]} exd4 {[%clk 00:08:34]} {[%emt 00:00:29]} 23. Qxg7
{[%clk 00:05:30]} {[%emt 00:00:02]} Qe5 {[%clk 00:08:42]} {[%emt 00:00:02]} 24.
Qxe5 {[%clk 00:05:22]} {[%emt 00:00:18]} Nxe5 {[%clk 00:08:51]} {[%emt
00:00:02]} 25. cxd4 {[%clk 00:05:30]} {[%emt 00:00:03]} Nf7 {[%clk 00:08:51]}
{[%emt 00:00:10]} 26. Bd1 {[%clk 00:04:18]} {[%emt 00:01:21]} Ng5 {[%clk
00:08:08]} {[%emt 00:00:52]} 27. O-O {[%clk 00:03:58]} {[%emt 00:00:31]} Rf8
{[%clk 00:05:21]} {[%emt 00:02:57]} 28. Bxa4 {[%clk 00:03:43]} {[%emt
00:00:25]} Rxf1+ {[%clk 00:05:27]} {[%emt 00:00:04]} 29. Rxf1 {[%clk 00:03:14]}
{[%emt 00:00:39]} Kd7 {[%clk 00:05:28]} {[%emt 00:00:09]} 30. Kg2 {[%clk
00:02:18]} {[%emt 00:01:05]} Rb8 {[%clk 00:05:11]} {[%emt 00:00:27]} 31. Bb3
{[%clk 00:01:06]} {[%emt 00:01:22]} Rb4 {[%clk 00:05:05]} {[%emt 00:00:16]} 32.
Rd1 {[%clk 00:00:23]} {[%emt 00:00:53]} a5 {[%clk 00:04:15]} {[%emt 00:01:00]}
33. Rd2 {[%clk 00:00:33]} {[%emt 00:00:01]} a4 {[%clk 00:04:21]} {[%emt
00:00:05]} 34. Bd1 {[%clk 00:00:27]} {[%emt 00:00:15]} Ne4 {[%clk 00:04:21]}
{[%emt 00:00:10]} 35. Rc2 {[%clk 00:00:25]} {[%emt 00:00:12]} Rxd4 {[%clk
00:04:23]} {[%emt 00:00:08]} 36. Bf3 {[%clk 00:00:22]} {[%emt 00:00:13]} Ng5
{[%clk 00:03:43]} {[%emt 00:00:50]} 37. Be2 {[%clk 00:00:14]} {[%emt 00:00:18]}
e5 {[%clk 00:03:19]} {[%emt 00:00:33]} 38. h6 {[%clk 00:00:15]} {[%emt
00:00:09]} Nf7 {[%clk 00:02:53]} {[%emt 00:00:37]} 39. Ba6 {[%clk 00:00:17]}
{[%emt 00:00:09]} Kd6 {[%clk 00:01:53]} {[%emt 00:01:09]} 40. Kf3 {[%clk
00:00:11]} {[%emt 00:00:16]} Rf4+ {[%clk 00:01:40]} {[%emt 00:00:23]} 41. Kg3
{[%clk 00:00:20]} Nxh6 {[%clk 00:01:45]} {[%emt 00:00:05]} 42. Bc8 {[%clk
00:00:26]} {[%emt 00:00:05]} Nf7 {[%clk 00:01:37]} {[%emt 00:00:18]} 43. Rh2
{[%clk 00:00:34]} {[%emt 00:00:02]} h6 {[%clk 00:01:40]} {[%emt 00:00:06]} 44.
Bf5 {[%clk 00:00:30]} {[%emt 00:00:14]} d4 {[%clk 00:01:31]} {[%emt 00:00:19]}
45. Bg6 {[%clk 00:00:32]} {[%emt 00:00:08]} Kd5 {[%clk 00:01:34]} {[%emt
00:00:07]} 46. b3 {[%clk 00:00:19]} {[%emt 00:00:23]} axb3 {[%clk 00:01:38]}
{[%emt 00:00:06]} 47. axb3 {[%clk 00:00:28]} c5 {[%clk 00:01:41]} {[%emt
00:00:08]} 48. Bd3 {[%clk 00:00:25]} {[%emt 00:00:12]} Rf6 {[%clk 00:01:45]}
{[%emt 00:00:06]} 49. Bc4+ {[%clk 00:00:30]} {[%emt 00:00:05]} Kd6 {[%clk
00:01:49]} {[%emt 00:00:05]} 50. Ra2 {[%clk 00:00:18]} {[%emt 00:00:22]} Nd8
{[%clk 00:01:38]} {[%emt 00:00:21]} 51. Ra6+ {[%clk 00:00:22]} {[%emt
00:00:06]} Nc6 {[%clk 00:01:44]} {[%emt 00:00:03]} 52. Bb5 {[%clk 00:00:27]}
{[%emt 00:00:04]} Kc7 {[%clk 00:01:52]} {[%emt 00:00:03]} 53. Bd3 {[%clk
00:00:25]} {[%emt 00:00:12]} Kb7 {[%clk 00:01:47]} {[%emt 00:00:15]} 54. Ra1
{[%clk 00:00:27]} {[%emt 00:00:08]} Nb4 {[%clk 00:01:33]} {[%emt 00:00:24]} 55.
Bc4 {[%clk 00:00:23]} {[%emt 00:00:14]} e4 {[%clk 00:01:35]} {[%emt 00:00:08]}
56. Re1 {[%clk 00:00:15]} {[%emt 00:00:18]} e3 {[%clk 00:01:38]} {[%emt
00:00:08]} 57. Kh4 {[%clk 00:00:14]} {[%emt 00:00:11]} Rf2 {[%clk 00:01:33]}
{[%emt 00:00:14]} 58. Kg3 {[%clk 00:00:18]} {[%emt 00:00:06]} Nc6 {[%clk
00:01:07]} {[%emt 00:00:36]} 59. Rh1 {[%clk 00:00:22]} {[%emt 00:00:07]} Rf6
{[%clk 00:01:15]} {[%emt 00:00:01]} 60. Rh5 {[%clk 00:00:19]} {[%emt 00:00:13]}
Kb6 {[%clk 00:01:20]} {[%emt 00:00:05]} 61. Rf5 {[%clk 00:00:16]} {[%emt
00:00:13]} Rxf5 {[%clk 00:01:15]} {[%emt 00:00:15]} 62. gxf5 {[%clk 00:00:25]}
{[%emt 00:00:01]} Kc7 {[%clk 00:01:24]} {[%emt 00:00:01]} 63. f6 {[%clk
00:00:24]} {[%emt 00:00:11]} Kd8 {[%clk 00:01:32]} {[%emt 00:00:03]} 64. Kf4
{[%clk 00:00:28]} {[%emt 00:00:06]} Ke8 {[%clk 00:01:32]} {[%emt 00:00:10]} 65.
Ke4 {[%clk 00:00:26]} {[%emt 00:00:12]} Na5 {[%clk 00:01:34]} {[%emt 00:00:08]}
66. Bf1 {[%emt 00:00:32]} 0-1

[ePGN "0.1;DGT LiveChess/2.2.5"]